fUST/lending_fUST_20251121
["ID","MTS","AMOUNT","RATE_DAILY","PERIOD"]
[394514805,1763656245445,-1000.0,0.00043,120]
[394514806,1763656245455,-7954.03219409,0.0004328,28]
[394514807,1763656245464,-200.0,0.00043344,120]
[394514808,1763656245474,-186.47771584,0.000436,120]
[394514809,1763656245483,-175.60719615,0.000436,120]
[394514810,1763656245493,-70857.48,0.000436,2]
[394514811,1763656245503,-1070.57,0.00043968,2]
[394514812,1763656245513,-414.0,0.00044073,2]
[394514813,1763656245523,-414.0,0.00044073,2]
[394514814,1763656245532,-199.0,0.00044109,30]
[394514815,1763656245542,-10000.0,0.0004423,30]
[394514816,1763656245553,-155.995652,0.0004479,2]
[394514817,1763656245563,-215.0,0.0004482,120]
[394514818,1763656245573,-186.47771584,0.000449,120]
[394514819,1763656245583,-81016.21440484,0.00045,2]
[394514820,1763656245591,-1000.0,0.00045,120]
[394514821,1763656245602,-20000.0,0.00045,7]
[394514822,1763656245614,-707.581052,0.00045205,120]
[394514823,1763656245624,-509.84,0.000453,30]
[394514824,1763656245633,-200.0,0.00045383,120]
[394514825,1763656245643,-32730.6418,0.00045444,30]
[394514826,1763656245655,-199.0,0.00045479,30]
[394514827,1763656245665,-942.76,0.000455,14]
[394514828,1763656245674,-550.28443181,0.0004559,2]
[394514829,1763656245684,-38000.0,0.00045705,12]
[394514830,1763656245693,-500.0,0.00045796,60]
[394514831,1763656245703,-522.92,0.000458,14]
[394514832,1763656245712,-186.21110124,0.00046,30]
[394514833,1763656245722,-986.02206,0.00046143,2]
[394514834,1763656245731,-5932.16529,0.00046233,2]
[394514835,1763656245741,-199.0,0.00046849,30]
[394514836,1763656245751,-500.0,0.00046892,60]
[394514837,1763656245760,-1000.0,0.00047,120]
[394514839,1763656245770,-2491.16,0.00047,120]
[394514841,1763656245781,-70857.48,0.00047,2]
[394514842,1763656245793,-215.0,0.00047061,120]
[394514844,1763656245802,-414.0,0.00047073,2]
[394514846,1763656245811,-414.0,0.00047073,2]
[394514848,1763656245823,-1338.21,0.00047108,2]
[394514850,1763656245832,-654904.3198,0.0004744,30]
[394514851,1763656245841,-205275.31877087,0.00047444,30]
[394514852,1763656245879,151.0,0.0003923,50]
[394514853,1763656245912,151.0,0.0003923,50]
[394514854,1763656245944,151.0,0.0003923,50]
[394514855,1763656245980,216.525405,0.0003923,50]
[394514856,1763656245994,-694.0900242,0.00032877,10]
[394514857,1763656246006,-5016.6399758,0.00032877,10]
[394514858,1763656246015,-12743.3600242,0.00047444,30]
[394514859,1763656246027,-1235.24419023,0.00047444,30]
[394514896,1763656247595,151.0,0.0003923,50]
[394514897,1763656247609,-2833.72109279,0.00047444,30]
[394514898,1763656250002,151.0,0.0003923,50]
[394514899,1763656250417,151.0,0.0003923,50]
[394514900,1763656251281,151.0,0.0003923,50]
[394514901,1763656251621,151.0,0.0003923,50]
[394514902,1763656251952,151.0,0.0003923,50]
[394514903,1763656252312,151.0,0.0003923,50]
[394514904,1763656252769,151.0,0.0003923,50]
[394514905,1763656253128,151.0,0.0003923,50]
[394514906,1763656253601,151.0,0.0003923,50]
[394514907,1763656254066,151.0,0.0003923,50]
[394514908,1763656254659,270.632476,0.0003923,50]
[394514909,1763656262342,151.0,0.0003923,50]
[394514910,1763656262890,151.0,0.0003923,50]
[394514911,1763656263470,273.653724,0.0003923,50]
[394514912,1763656286103,151.0,0.0003923,50]
[394514913,1763656286672,151.0,0.0003923,50]
[394514914,1763656287004,239.958412,0.0003923,50]
[394514915,1763656292768,151.0,0.0003923,50]
[394514916,1763656293110,151.0,0.0003923,50]
[394514917,1763656293407,151.0,0.0003923,50]
[394514918,1763656293859,293.946588,0.0003923,50]
[394514919,1763656308490,151.0,0.0003923,50]
[394514920,1763656308870,151.0,0.0003923,50]
[394514921,1763656310461,157.241792,0.0003923,50]
[394514922,1763656314507,151.0,0.0003923,50]
[394514923,1763656314935,151.0,0.0003923,50]
[394514924,1763656316172,151.0,0.0003923,50]
[394514925,1763656316518,151.0,0.0003923,50]
[394514926,1763656316872,151.0,0.0003923,50]
[394514927,1763656317272,151.0,0.0003923,50]
[394514929,1763656317562,151.0,0.0003923,50]
[394514930,1763656317895,151.0,0.0003923,50]
[394514931,1763656318241,151.0,0.0003923,50]
[394514932,1763656318725,151.0,0.0003923,50]
[394514933,1763656319054,151.0,0.0003923,50]
[394514934,1763656319392,301.755948,0.0003923,50]
[394514937,1763656346071,151.0,0.0003923,50]
[394514938,1763656346591,270.815508,0.0003923,50]
[394514942,1763656350680,151.0,0.0003923,50]
[394514943,1763656351025,151.0,0.0003923,50]
[394514944,1763656352293,151.0,0.0003923,50]
[394514945,1763656352359,151.0,0.0003923,50]
[394514946,1763656353234,151.0,0.0003923,50]
[394514947,1763656353575,151.0,0.0003923,50]
[394514948,1763656354402,151.0,0.0003923,50]
[394514949,1763656355263,151.0,0.0003923,50]
[394514950,1763656356133,151.0,0.0003923,50]
[394514951,1763656356489,151.0,0.0003923,50]
[394514952,1763656356823,151.0,0.0003923,50]
[394514953,1763656357141,271.318884,0.0003923,50]
[394514955,1763656370808,432.75174972,0.00039296,30]
[394515019,1763656742272,153.09,1e-05,2]
[394515020,1763656742717,153.09,1e-05,2]
[394515021,1763656742866,153.09,1e-05,2]
[394515022,1763656743150,153.09,1e-05,2]
[394515023,1763656743432,153.09,1e-05,2]
[394515024,1763656743785,153.09,1e-05,2]
[394515025,1763656744111,153.09,1e-05,2]
[394515026,1763656745084,153.09,1.1e-05,2]
[394515027,1763656745529,153.09,1.1e-05,2]
[394515028,1763656745886,153.09,1.1e-05,2]
[394515029,1763656746240,153.09,1.1e-05,2]
[394515030,1763656746580,153.09,1.1e-05,2]
[394515031,1763656746889,153.09,1.1e-05,2]
[394515032,1763656747171,153.09,1.1e-05,2]
[394515033,1763656747659,153.09,1.1e-05,2]
[394515038,1763656817901,500.0,0.00039211,30]
[394515039,1763656818144,500.0,0.00039211,30]
[394515040,1763656818386,500.0,0.00039211,30]
[394515041,1763656819156,500.0,0.00039211,30]
[394515042,1763656819316,500.0,0.00039211,30]
[394515043,1763656819644,500.0,0.00039211,30]
[394515044,1763656819924,500.0,0.00039211,30]
[394515045,1763656820166,415.5,0.00039211,30]
[394515048,1763657060708,159.0,1.07e-06,2]
[394515049,1763657061728,159.0,1.07e-06,2]
[394515050,1763657062759,159.0,1.07e-06,2]
[394515051,1763657063811,159.0,1.07e-06,2]
[394515052,1763657064843,159.0,1.07e-06,2]
[394515053,1763657065888,159.0,1.07e-06,2]
[394515054,1763657097159,6576.46110999,5.996e-05,2]
[394515089,1763657231429,300.0,5.994e-05,2]
[394515090,1763657239635,300.0,5.994e-05,2]
[394515091,1763657255644,300.0,5.994e-05,2]
[394515092,1763657264282,300.0,5.994e-05,2]
[394515093,1763657279548,1500.0,5.994e-05,2]
[394515094,1763657287821,1200.0,5.994e-05,2]
[394515095,1763657303182,1500.0,5.994e-05,2]
[394515096,1763657311060,1500.0,5.994e-05,2]
[394515097,1763657326496,1884.44558953,5.994e-05,2]
[394515098,1763657334528,15113.83873355,5.994e-05,2]
[394515099,1763657345683,890000.0,5.957e-05,2]
[394515165,1763657432555,-300.0,6.054e-05,2]
[394515168,1763657432564,-882.78346577,6.054e-05,2]
[394515407,1763657438393,-500.0,6.054e-05,2]
[394515408,1763657438403,-973.80860863,6.054e-05,2]
[394515409,1763657438412,-500.0,6.054e-05,2]
[394515410,1763657438423,-973.80860863,6.054e-05,2]
[394515411,1763657438435,-973.80860863,6.054e-05,2]
[394515412,1763657438446,-500.0,6.054e-05,2]
[394515413,1763657438456,-973.80860863,6.054e-05,2]
[394515414,1763657438472,-973.80860863,6.054e-05,2]
[394515417,1763657438599,-500.0,6.054e-05,2]
[394515418,1763657438609,-973.80860863,6.054e-05,2]
[394515419,1763657438619,-500.0,6.054e-05,2]
[394515420,1763657438629,-973.80860863,6.054e-05,2]
[394515421,1763657438639,-973.80860863,6.054e-05,2]
[394515422,1763657438649,-538.86512847,6.054e-05,2]
[394515423,1763657438658,-973.80860863,6.054e-05,2]
[394515424,1763657438667,-973.80860863,6.054e-05,2]
[394515425,1763657438676,-973.80860863,6.054e-05,2]
[394515426,1763657438686,-973.80860863,6.054e-05,2]
[394515427,1763657438696,-973.80860863,6.054e-05,2]
[394515428,1763657438706,-973.80860863,6.054e-05,2]
[394515429,1763657438721,-973.80860863,6.054e-05,2]
[394515430,1763657438731,-973.80860863,6.054e-05,2]
[394515431,1763657438740,-973.80860863,6.054e-05,2]
[394515432,1763657438750,-973.80860863,6.054e-05,2]
[394515433,1763657438759,-973.80860863,6.054e-05,2]
[394515434,1763657438769,-973.80860863,6.054e-05,2]
[394515435,1763657438779,-973.80860863,6.054e-05,2]
[394515436,1763657438789,-973.80860863,6.054e-05,2]
[394515437,1763657438799,-973.80860863,6.054e-05,2]
[394515438,1763657438809,-973.80860863,6.054e-05,2]
[394515439,1763657438818,-973.80860863,6.054e-05,2]
[394515440,1763657438828,-973.80860863,6.054e-05,2]
[394515441,1763657438838,-973.80860863,6.054e-05,2]
[394515442,1763657438848,-973.80860863,6.054e-05,2]
[394515443,1763657438858,-973.80860863,6.054e-05,2]
[394515444,1763657438868,-973.80860863,6.054e-05,2]
[394515445,1763657438879,-973.80860863,6.054e-05,2]
[394515446,1763657438888,-973.80860863,6.054e-05,2]
[394515447,1763657438898,-973.80860863,6.054e-05,2]
[394515448,1763657438908,-973.80860863,6.054e-05,2]
[394515449,1763657438918,-973.80860863,6.054e-05,2]
[394515450,1763657438928,-973.80860863,6.054e-05,2]
[394515451,1763657438938,-973.80860863,6.054e-05,2]
[394515452,1763657438948,-973.80860863,6.054e-05,2]
[394515453,1763657438958,-973.80860863,6.054e-05,2]
[394515454,1763657438970,-973.80860863,6.054e-05,2]
[394515455,1763657438980,-973.80860863,6.054e-05,2]
[394515456,1763657438990,-973.80860863,6.054e-05,2]
[394515457,1763657439000,-973.80860863,6.054e-05,2]
[394515458,1763657439011,-973.80860863,6.054e-05,2]
[394515459,1763657439021,-973.80860863,6.054e-05,2]
[394515460,1763657439030,-973.80860863,6.054e-05,2]
[394515461,1763657439041,-973.80860863,6.054e-05,2]
[394515462,1763657439051,-973.80860863,6.054e-05,2]
[394515463,1763657439061,-973.80860863,6.054e-05,2]
[394515464,1763657439071,-973.80860863,6.054e-05,2]
[394515465,1763657439081,-973.80860863,6.054e-05,2]
[394515466,1763657439091,-973.80860863,6.054e-05,2]
[394515467,1763657439101,-973.80860863,6.054e-05,2]
[394515468,1763657439111,-973.80860863,6.054e-05,2]
[394515469,1763657439121,-973.80860863,6.054e-05,2]
[394515470,1763657439131,-973.80860863,6.054e-05,2]
[394515471,1763657439141,-973.80860863,6.054e-05,2]
[394515472,1763657439150,-973.80860863,6.054e-05,2]
[394515473,1763657439161,-973.80860863,6.054e-05,2]
[394515474,1763657439171,-973.80860863,6.054e-05,2]
[394515475,1763657439181,-973.80860863,6.054e-05,2]
[394515476,1763657439191,-317.21653423,6.054e-05,2]
[394515477,1763657439200,-1200.0,6.055e-05,2]
[394515478,1763657439214,-150.0,6.056e-05,2]
[394515479,1763657439224,-1661.44146072,6.157e-05,2]
[394515480,1763657439233,-300.0,6.183e-05,2]
[394515481,1763657439244,-300.0,6.183e-05,2]
[394515482,1763657439254,-300.0,6.183e-05,2]
[394515483,1763657439265,-300.0,6.183e-05,2]
[394515484,1763657439279,-300.0,6.183e-05,2]
[394515485,1763657439289,-300.0,6.183e-05,2]
[394515486,1763657439299,-189.0,6.279e-05,2]
[394515487,1763657439310,-1137.3204231,6.381e-05,2]
[394515488,1763657439320,-420.0,6.659e-05,2]
[394515489,1763657439330,-1680.0,6.659e-05,2]
[394515490,1763657439340,-1395.0,6.66e-05,2]
[394515491,1763657439351,-500.85430439,6.804e-05,2]
[394515492,1763657439360,-500.0,6.892e-05,2]
[394515493,1763657439369,-500.0,6.892e-05,2]
[394515494,1763657439379,-1137.3204231,7.273e-05,2]
[394515495,1763657439388,-587.0,7.325e-05,2]
[394515496,1763657439398,-2351.0,7.325e-05,2]
[394515497,1763657439408,-638.41644065,7.44e-05,2]
[394515498,1763657439418,-506.10959622,7.44e-05,2]
[394515499,1763657439427,-642.62495576,7.495e-05,2]
[394515500,1763657439437,-759.92,7.967e-05,2]
[394515501,1763657439447,-177.0,8.056e-05,2]
[394515502,1763657439458,-823.0,8.058e-05,2]
[394515503,1763657439476,-3292.0,8.058e-05,2]
[394515504,1763657439486,-162.84,8.075e-05,2]
[394515505,1763657439496,-162.83,8.083e-05,2]
[394515506,1763657439507,-1137.3204231,8.164e-05,2]
[394515507,1763657439518,-273.06645158,8.219e-05,2]
[394515508,1763657439529,-1152.0,8.863e-05,2]
[394515509,1763657439539,-821.0,8.863e-05,2]
[394515510,1763657439549,-1137.3204231,9.056e-05,2]
[394515511,1763657439560,-1613.0,9.75e-05,2]
[394515512,1763657439570,-204.0,0.00010056,2]
[394515513,1763657439579,-596.27171187,0.00010073,2]
[394515514,1763657439589,-1073.28908137,0.00010124,2]
[394515515,1763657439599,-1908.069478,0.00010177,2]
[394515516,1763657439609,-500.0,0.00010224,2]
[394515517,1763657439618,-2258.0,0.00010725,2]
[394515518,1763657439628,-1000.0,0.00010772,2]
[394515519,1763657439638,-655.1909297,0.00010959,2]
[394515520,1763657439647,-999.0,0.00010959,2]
[394515521,1763657439657,-500.0,0.00010959,2]
[394515522,1763657439666,-430.46673588,0.00010959,2]
[394515523,1763657439675,-500.0,0.00010959,2]
[394515524,1763657439684,-187.1986547,0.0001132,2]
[394515525,1763657439694,-1442.0,0.00011797,2]
[394515526,1763657439703,-231.0,0.00012056,2]
[394515527,1763657439716,-1980.30212822,0.000129,2]
[394515528,1763657439725,-1980.30212817,0.000129,2]
[394515529,1763657439734,-500.0,0.00013698,2]
[394515530,1763657439744,-500.0,0.00013698,2]
[394515531,1763657439753,-500.0,0.00013698,2]
[394515532,1763657439763,-500.0,0.00013698,2]
[394515533,1763657439772,-500.0,0.00013698,2]
[394515534,1763657439782,-500.0,0.00013698,2]
[394515535,1763657439791,-500.0,0.00013698,2]
[394515536,1763657439801,-500.0,0.00013698,2]
[394515537,1763657439811,-500.0,0.00013698,2]
[394515538,1763657439821,-528.40005003,0.00013698,2]
[394515539,1763657439831,-758.019184,0.00013699,2]
[394515540,1763657439841,-20199.2245872,0.00013699,2]
[394515541,1763657439850,-1000.0,0.00013699,2]
[394515542,1763657439860,-674.1672,0.00013699,2]
[394515543,1763657439871,-258.0,0.00014056,2]
[394515544,1763657439881,-288.9288,0.00014384,2]
[394515545,1763657439892,-398.60872333,0.000149,2]
[394515546,1763657439903,-270.0,0.00016056,2]
[394515547,1763657439913,-500.0,0.00016438,2]
[394515548,1763657439923,-500.0,0.00016438,2]
[394515549,1763657439933,-391.84293559,0.00016438,2]
[394515550,1763657439943,-500.0,0.00016438,2]
[394515551,1763657439952,-500.0,0.00016438,2]
[394515552,1763657439964,-500.0,0.00016438,2]
[394515553,1763657439973,-500.0,0.00016438,2]
[394515555,1763657439983,-500.0,0.00016438,2]
[394515557,1763657439992,-500.0,0.00016438,2]
[394515559,1763657440002,-500.0,0.00016438,2]
[394515561,1763657440011,-500.0,0.00016438,2]
[394515563,1763657440022,-500.0,0.00016438,2]
[394515565,1763657440031,-500.0,0.00016438,2]
[394515567,1763657440041,-500.0,0.00016438,2]
[394515568,1763657440051,-500.0,0.00016438,2]
[394515569,1763657440061,-500.0,0.00016438,2]
[394515570,1763657440070,-500.0,0.00016438,2]
[394515571,1763657440081,-500.0,0.00016438,2]
[394515572,1763657440090,-500.0,0.00016438,2]
[394515573,1763657440100,-500.0,0.00016438,2]
[394515575,1763657440110,-500.0,0.00016438,2]
[394515577,1763657440119,-500.0,0.00016438,2]
[394515579,1763657440129,-500.0,0.00016438,2]
[394515581,1763657440139,-500.0,0.00016438,2]
[394515584,1763657440148,-500.0,0.00016438,2]
[394515587,1763657440157,-500.0,0.00016438,2]
[394515590,1763657440167,-500.0,0.00016438,2]
[394515593,1763657440177,-500.0,0.00016438,2]
[394515595,1763657440186,-500.0,0.00016438,2]
[394515597,1763657440196,-500.0,0.00016438,2]
[394515599,1763657440205,-500.0,0.00016438,2]
[394515601,1763657440217,-500.0,0.00016438,2]
[394515603,1763657440227,-500.0,0.00016438,2]
[394515605,1763657440236,-500.0,0.00016438,2]
[394515607,1763657440246,-500.0,0.00016438,2]
[394515609,1763657440256,-500.0,0.00016438,2]
[394515611,1763657440271,-500.0,0.00016438,2]
[394515614,1763657440281,-500.0,0.00016438,2]
[394515616,1763657440291,-500.0,0.00016438,2]
[394515618,1763657440302,-500.0,0.00016438,2]
[394515620,1763657440311,-500.0,0.00016438,2]
[394515623,1763657440321,-500.0,0.00016438,2]
[394515626,1763657440330,-500.0,0.00016438,2]
[394515628,1763657440340,-500.0,0.00016438,2]
[394515631,1763657440349,-500.0,0.00016438,2]
[394515633,1763657440360,-500.0,0.00016438,2]
[394515635,1763657440369,-500.0,0.00016438,2]
[394515637,1763657440378,-500.0,0.00016438,2]
[394515639,1763657440388,-500.0,0.00016438,2]
[394515641,1763657440397,-500.0,0.00016438,2]
[394515642,1763657440406,-500.0,0.00016438,2]
[394515643,1763657440416,-500.0,0.00016438,2]
[394515645,1763657440425,-500.0,0.00016438,2]
[394515647,1763657440434,-500.0,0.00016438,2]
[394515649,1763657440443,-500.0,0.00016438,2]
[394515651,1763657440452,-500.0,0.00016438,2]
[394515653,1763657440464,-500.0,0.00016438,2]
[394515655,1763657440473,-500.0,0.00016438,2]
[394515657,1763657440482,-500.0,0.00016438,2]
[394515659,1763657440491,-500.0,0.00016438,2]
[394515661,1763657440501,-500.0,0.00016438,2]
[394515663,1763657440510,-500.0,0.00016721,2]
[394515665,1763657440520,-642.62495576,0.00017154,2]
[394515667,1763657440529,-1000.0,0.00017269,2]
[394515669,1763657440538,-1000.0,0.000176,2]
[394515671,1763657440547,-1000.0,0.000176,2]
[394515673,1763657440557,-1000.0,0.000176,2]
[394515675,1763657440566,-1000.0,0.000176,2]
[394515677,1763657440576,-180.0,0.00017654,2]
[394515678,1763657440585,-1557.56771256,0.00017817,2]
[394515681,1763657440594,-180.0,0.00017909,2]
[394515684,1763657440603,-180.0,0.00017985,2]
[394515687,1763657440612,-180.0,0.00018024,2]
[394515689,1763657440622,-180.0,0.00018065,2]
[394515692,1763657440631,-414.0,0.00018082,2]
[394515695,1763657440640,-180.0,0.0001816,2]
[394515697,1763657440649,-180.0,0.00018166,2]
[394515699,1763657440658,-500.0,0.00018196,2]
[394515701,1763657440668,-180.0,0.00018205,2]
[394515703,1763657440678,-1980.30212817,0.00018352,2]
[394515706,1763657440687,-500.0,0.00018409,2]
[394515708,1763657440696,-168.0,0.00018458,2]
[394515710,1763657440705,-168.0,0.00018476,2]
[394515713,1763657440716,-168.0,0.00018517,2]
[394515716,1763657440726,-168.0,0.00018612,2]
[394515718,1763657440735,-180.0,0.0001862,2]
[394515721,1763657440744,-180.0,0.00018644,2]
[394515723,1763657440753,-719.62288868,0.00018744,2]
[394515724,1763657440763,-180.0,0.00018745,2]
[394515725,1763657440772,-500.0,0.00018782,2]
[394515726,1763657440783,-180.0,0.00018826,2]
[394515727,1763657440792,-180.0,0.00018892,2]
[394515728,1763657440802,-168.0,0.00018928,2]
[394515729,1763657440811,-78961.82624133,0.0001899,2]
[394515730,1763657440882,-21038.17375867,0.0001899,2]
[394515731,1763657440892,-180.0,0.00018997,2]
[394515732,1763657440901,-500.0,0.00019025,2]
[394515733,1763657440911,-500.0,0.00019122,2]
[394515734,1763657440920,-168.0,0.00019171,2]
[394515735,1763657440930,-500.0,0.00019171,2]
[394515736,1763657440939,-180.0,0.00019309,2]
[394515737,1763657440948,-1000.0,0.0001933,2]
[394515738,1763657440957,-180.0,0.00019374,2]
[394515739,1763657440969,-180.0,0.00019411,2]
[394515740,1763657440978,-180.0,0.00019415,2]
[394515741,1763657440987,-180.0,0.00019454,2]
[394515742,1763657440997,-1000.0,0.00019573,2]
[394515743,1763657441006,-1000.0,0.0001967,2]
[394515744,1763657441016,-1000.0,0.00019719,2]
[394515745,1763657441025,-1500.0,0.00019878,2]
[394515746,1763657441035,-1500.0,0.00020121,2]
[394515747,1763657441044,-758.019184,0.00020187,2]
[394515748,1763657441054,-1500.0,0.00020218,2]
[394515749,1763657441063,-331.65457704,0.00020267,2]
[394515750,1763657441073,-502.96166405,0.00020426,2]
[394515751,1763657441083,-2000.0,0.00020669,2]
[394515752,1763657441092,-164.14519516,0.00020721,2]
[394515753,1763657441101,-1351.37085115,0.00020766,2]
[394515754,1763657441111,-414.0,0.00021082,2]
[394515755,1763657441120,-2500.0,0.00021217,2]
[394515757,1763657441130,-175.79310929,0.00021576,2]
[394515758,1763657441139,-3000.0,0.00021765,2]
[394515759,1763657441232,-225.85117016,0.00022243,2]
[394515760,1763657441242,-3500.0,0.00022313,2]
[394515761,1763657441252,-202.72092053,0.00022332,2]
[394515762,1763657441263,-171.73981925,0.00022333,2]
[394515763,1763657441277,-209.17,0.000224,7]
[394515764,1763657441287,-268.00794107,0.00022555,30]
[394515765,1763657441299,-202.72092052,0.00022556,30]
[394515766,1763657441310,-4000.0,0.00022861,2]
[394515767,1763657441320,-171.73981925,0.0002301,56]
[394515768,1763657441332,-171.73981925,0.00023687,110]
[394515769,1763657441342,-414.0,0.00024082,2]
[394515770,1763657441354,-152.95,0.000241,14]
[394515771,1763657441364,-27442.61,0.000241,2]
[394515772,1763657441373,-703.17243718,0.00024132,2]
[394515773,1763657441383,-1980.30212817,0.0002455,2]
[394515774,1763657441392,-380.0,0.00024658,2]
[394515775,1763657441401,-151.0,0.000248,7]
[394515776,1763657441410,-151.759233,0.000248,7]
[394515777,1763657441420,-152.993361,0.000248,7]
[394515778,1763657441429,-153.051092,0.000248,7]
[394515779,1763657441439,-151.0,0.000248,7]
[394515780,1763657441448,-152.894877,0.000248,7]
[394515781,1763657441458,-151.0,0.000248,7]
[394515782,1763657441471,-151.0,0.000248,7]
[394515783,1763657441480,-3559.299174,0.000248,2]
[394515784,1763657441490,-153.038073,0.000248,7]
[394515785,1763657441499,-151.0,0.000248,7]
[394515786,1763657441508,-162.74059804,0.00024873,2]
[394515787,1763657441518,-500.0,0.00024873,2]
[394515788,1763657441528,-151.0,0.000249,7]
[394515789,1763657441537,-151.0,0.000249,7]
[394515790,1763657441548,-151.0,0.000249,7]
[394515791,1763657441557,-151.0,0.000249,7]
[394515792,1763657441567,-151.0,0.000249,7]
[394515793,1763657441576,-160.295172,0.000249,7]
[394515794,1763657441585,-90448.19753361,0.000249,2]
[394515795,1763657441596,-365.87042511,0.000249,2]
[394515796,1763657441619,-1000.022535,0.000249,2]
[394515844,1763657444910,-38771.74784445,0.000249,2]
[394515845,1763657444921,-1215.470146,0.000249,2]
[394515858,1763657446811,-17687.10435852,0.000249,2]
[394515859,1763657446822,-571983.2882305,0.000249,2]
[394515860,1763657446834,-441.315,0.000249,2]
[394515861,1763657446867,-4434.31827897,0.000249,2]
[394515862,1763657447030,-14418.59356084,0.000249,2]
[394515863,1763657447040,-151.0,0.000249,7]
[394515864,1763657447049,-151.0,0.000249,7]
[394515865,1763657447059,-153.181809,0.000249,7]
[394515866,1763657447067,-152.067407,0.000249,7]
[394515867,1763657447076,-151.0,0.000249,7]
[394515868,1763657447085,-153.229709,0.000249,7]
[394515870,1763657447095,-151.0,0.000249,7]
[394515871,1763657447104,-151.0,0.000249,7]
[394515872,1763657447114,-758.019184,0.00026676,2]
[394515873,1763657447124,-1319.90833015,0.00026689,2]
[394515875,1763657466211,2500.0,0.00039211,120]
[394515876,1763657466561,500.0,0.00039211,120]
[394515877,1763657466909,2592.5,0.00039211,60]
[394515878,1763657467201,500.0,0.00039211,120]
[394515879,1763657467681,2688.4225,0.00039211,30]
[394515880,1763657468334,2787.8941325,0.00039211,54]
[394515881,1763657468993,2891.0462154,0.00039211,90]
[394515882,1763657469592,2998.01492537,0.00039211,52]
[394515883,1763657470682,3108.94147761,0.00039211,85]
[394515884,1763657471333,3223.97231228,0.00039211,70]
[394515885,1763657471950,3343.25928784,0.00039211,30]
[394515886,1763657472042,250.0,0.00039211,120]
[394515887,1763657472566,3466.95988149,0.00039211,20]
[394515888,1763657472699,250.0,0.00039211,60]
[394515889,1763657473230,3595.2373971,0.00039211,20]
[394515890,1763657473304,250.0,0.00039211,30]
[394515891,1763657473863,3728.2611808,0.00039211,20]
[394515892,1763657473905,250.0,0.00039211,54]
[394515893,1763657474500,3866.20684448,0.00039211,20]
[394515894,1763657474577,250.0,0.00039211,90]
[394515895,1763657475161,4009.25649773,0.00039211,20]
[394515896,1763657475234,250.0,0.00039211,52]
[394515897,1763657475823,4157.59898815,0.00039211,20]
[394515898,1763657475865,250.0,0.00039211,85]
[394515899,1763657476554,250.0,0.00039211,70]
[394515900,1763657476631,4311.43015071,0.00039211,20]
[394515901,1763657477189,250.0,0.00039211,70]
[394515902,1763657477315,4470.95306628,0.00039211,20]
[394515903,1763657477927,4636.37832974,0.00039211,20]
[394515904,1763657478566,4807.92432794,0.00039211,20]
[394515905,1763657479349,4807.92432794,0.00039211,20]
[394515906,1763657515593,54024.88456693,5.955e-05,2]
[394515918,1763657568060,300.0,5.835e-05,2]
[394515919,1763657590461,300.0,5.835e-05,2]
[394515920,1763657593837,330.89533923,0.00039096,30]
[394515921,1763657613146,300.0,5.835e-05,2]
[394515922,1763657686415,300.0,5.835e-05,2]
[394515923,1763657708825,300.0,5.835e-05,2]
[394515924,1763657713948,180.0,0.00026694,120]
[394515925,1763657715498,180.0,0.00028029,120]